fUST/lending_fUST_20250105
["ID","MTS","AMOUNT","RATE_DAILY","PERIOD"]
[347656223,1736025058986,-651.67,0.00020273,3]
[347656224,1736025058996,-528.09,0.00020273,3]
[347656225,1736025059006,-832.77,0.00020273,3]
[347656226,1736025059016,-500.0,0.00020273,3]
[347656227,1736025059027,-500.0,0.00020273,3]
[347656228,1736025059036,-1388.99,0.00020273,3]
[347656229,1736025059045,-500.0,0.00020273,3]
[347656230,1736025059055,-500.0,0.00020273,3]
[347656231,1736025059064,-500.0,0.00020273,3]
[347656232,1736025059074,-500.0,0.00020273,3]
[347656233,1736025059086,-500.0,0.00020273,3]
[347656234,1736025059096,-500.0,0.00020273,3]
[347656235,1736025059108,-500.0,0.00020273,3]
[347656236,1736025059118,-151.0,0.00020273,5]
[347656237,1736025059127,-151.0,0.00020273,5]
[347656238,1736025059137,-1791.73,0.00020273,3]
[347656239,1736025059147,-546.84,0.00020273,3]
[347656240,1736025059157,-500.0,0.00020273,3]
[347656241,1736025059166,-500.0,0.00020273,3]
[347656242,1736025059177,-543.96,0.00020273,3]
[347656243,1736025059187,-500.0,0.00020273,3]
[347656244,1736025059198,-666.49,0.00020273,3]
[347656245,1736025059207,-500.0,0.00020273,3]
[347656246,1736025059217,-500.0,0.00020273,3]
[347656247,1736025059226,-518.95,0.00020273,3]
[347656248,1736025059236,-546.26,0.00020273,3]
[347656249,1736025059245,-500.0,0.00020273,3]
[347656250,1736025059255,-500.0,0.00020273,3]
[347656251,1736025059264,-500.0,0.00020273,3]
[347656252,1736025059275,-11287.9,0.00020273,3]
[347656253,1736025059285,-1976.26,0.00020273,3]
[347656254,1736025059294,-500.0,0.00020273,3]
[347656255,1736025059305,-500.0,0.00020273,3]
[347656256,1736025059316,-500.0,0.00020273,3]
[347656257,1736025059326,-500.0,0.00020273,3]
[347656258,1736025059335,-630.92495434,0.00020273,3]
[347656259,1736025059345,-500.0,0.00020273,3]
[347656260,1736025059356,-3887.77,0.00020273,3]
[347656261,1736025059369,-543.56,0.00020273,3]
[347656262,1736025059378,-500.0,0.00020273,3]
[347656263,1736025059388,-500.0,0.00020273,3]
[347656264,1736025059397,-2267.53,0.00020273,2]
[347656265,1736025059406,-500.0,0.00020273,3]
[347656266,1736025059415,-500.0,0.00020273,3]
[347656267,1736025059425,-500.0,0.00020273,3]
[347656268,1736025059435,-500.0,0.00020273,3]
[347656269,1736025059445,-5934.35,0.00020273,3]
[347656270,1736025059455,-500.0,0.00020273,3]
[347656271,1736025059465,-529.94,0.00020273,3]
[347656272,1736025059475,-1226.74,0.00020273,3]
[347656273,1736025059484,-1736.46,0.00020273,3]
[347656274,1736025059494,-301.12822731,0.00020273,3]
[347656275,1736025059504,-500.0,0.00020273,3]
[347656276,1736025059513,-930.43,0.00020273,3]
[347656277,1736025059522,-500.0,0.00020273,3]
[347656278,1736025059531,-504.76,0.00020273,3]
[347656279,1736025059542,-1209.92,0.00020273,3]
[347656280,1736025059551,-932.74,0.00020273,3]
[347656281,1736025059561,-1957.76,0.00020273,3]
[347656282,1736025059571,-500.0,0.00020273,3]
[347656283,1736025059581,-500.0,0.00020273,3]
[347656284,1736025059591,-991.32,0.00020273,3]
[347656285,1736025059600,-3374.63,0.00020273,3]
[347656286,1736025059610,-500.0,0.00020273,3]
[347656287,1736025059620,-993.13,0.00020273,3]
[347656288,1736025059630,-500.0,0.00020273,3]
[347656289,1736025059639,-2178.95,0.00020273,3]
[347656290,1736025059649,-1414.93,0.00020273,3]
[347656291,1736025059659,-500.0,0.00020273,3]
[347656292,1736025059669,-500.0,0.00020273,3]
[347656293,1736025059679,-2050.61,0.00020273,3]
[347656294,1736025059690,-500.0,0.00020273,3]
[347656295,1736025059703,-329.07882463,0.00020273,3]
[347656296,1736025059714,-500.0,0.00020273,3]
[347656297,1736025059725,-1322.55,0.00020273,3]
[347656298,1736025059735,-500.0,0.00020273,3]
[347656299,1736025059745,-500.0,0.00020273,3]
[347656300,1736025059755,-500.0,0.00020273,3]
[347656301,1736025059764,-500.0,0.00020273,3]
[347656302,1736025059773,-500.0,0.00020273,3]
[347656303,1736025059785,-500.0,0.00020273,3]
[347656304,1736025059797,-810.68,0.00020273,3]
[347656305,1736025059808,-500.0,0.00020273,3]
[347656306,1736025059819,-500.0,0.00020273,3]
[347656307,1736025059829,-794.4,0.00020273,3]
[347656308,1736025059839,-500.0,0.00020273,3]
[347656309,1736025059849,-500.0,0.00020273,3]
[347656310,1736025059858,-500.0,0.00020273,3]
[347656311,1736025059868,-500.0,0.00020273,3]
[347656312,1736025059879,-500.0,0.00020273,3]
[347656313,1736025059888,-1022.94,0.00020273,3]
[347656314,1736025059898,-500.0,0.00020273,3]
[347656315,1736025059910,-566.15,0.00020273,3]
[347656316,1736025059921,-52387.46,0.00020273,3]
[347656317,1736025059932,-502.78210461,0.00020273,3]
[347656318,1736025059942,-3528.88,0.00020273,3]
[347656319,1736025059953,-500.0,0.00020273,3]
[347656320,1736025059963,-544.79,0.00020273,3]
[347656321,1736025059974,-1560.37,0.00020273,3]
[347656322,1736025059986,-710.1,0.00020273,2]
[347656323,1736025059996,-500.0,0.00020273,3]
[347656324,1736025060006,-3978.56,0.00020273,3]
[347656325,1736025060018,-500.0,0.00020273,3]
[347656326,1736025060027,-500.3,0.00020273,3]
[347656327,1736025060036,-500.0,0.00020273,3]
[347656328,1736025060045,-500.0,0.00020273,3]
[347656329,1736025060054,-500.0,0.00020273,3]
[347656330,1736025060064,-500.0,0.00020273,3]
[347656331,1736025060074,-2004.04,0.00020273,3]
[347656332,1736025060084,-500.0,0.00020273,3]
[347656333,1736025060096,-500.0,0.00020273,3]
[347656334,1736025060105,-500.0,0.00020273,3]
[347656335,1736025060115,-567.49,0.00020273,3]
[347656336,1736025060127,-1825.64,0.00020273,3]
[347656337,1736025060136,-500.0,0.00020273,3]
[347656338,1736025060146,-500.0,0.00020273,3]
[347656339,1736025060157,-500.0,0.00020273,3]
[347656340,1736025060167,-500.0,0.00020273,3]
[347656341,1736025060176,-2397.79,0.00020273,3]
[347656342,1736025060187,-1238.1,0.00020273,3]
[347656343,1736025060196,-1143.57,0.00020273,3]
[347656344,1736025060206,-500.0,0.00020273,3]
[347656345,1736025060216,-500.0,0.00020273,3]
[347656346,1736025060225,-5561.67,0.00020273,3]
[347656347,1736025060235,-610.29,0.00020273,3]
[347656348,1736025060245,-10412.97,0.00020273,3]
[347656349,1736025060255,-2588.43,0.00020273,3]
[347656350,1736025060264,-2298.23,0.00020273,3]
[347656351,1736025060274,-500.0,0.00020273,3]
[347656352,1736025060284,-512.04,0.00020273,3]
[347656353,1736025060293,-1448.98,0.00020273,3]
[347656354,1736025060303,-500.0,0.00020273,3]
[347656355,1736025060438,-500.0,0.00020273,3]
[347656356,1736025060465,-500.0,0.00020273,3]
[347656357,1736025060475,-595.75,0.00020273,3]
[347656358,1736025060484,-4959.36,0.00020273,3]
[347656359,1736025060493,-1523.01,0.00020273,3]
[347656360,1736025060502,-150.06,0.00020274,2]
[347656361,1736025060511,-310.30522082,0.00020308,2]
[347656362,1736025060521,-170.26107578,0.00020321,2]
[347656363,1736025060531,-85000.0,0.00020361,2]
[347656364,1736025060540,-394.0,0.00020411,2]
[347656365,1736025060551,-5080.15491587,0.00020417,2]
[347656366,1736025060560,-5638.0349713,0.00020463,2]
[347656367,1736025060572,-529.863212,0.00020521,2]
[347656368,1736025060581,-646.74,0.00020547,3]
[347656369,1736025060591,-500.0,0.00020547,3]
[347656370,1736025060602,-500.0,0.00020547,3]
[347656371,1736025060611,-500.0,0.00020547,3]
[347656372,1736025060620,-500.0,0.00020547,3]
[347656373,1736025060629,-494.13787629,0.00020547,3]
[347656374,1736025060638,-500.0,0.00020547,3]
[347656375,1736025060647,-500.0,0.00020547,3]
[347656376,1736025060656,-558.6,0.00020547,3]
[347656377,1736025060666,-500.0,0.00020547,3]
[347656378,1736025060675,-500.0,0.00020547,3]
[347656379,1736025060684,-500.0,0.00020547,3]
[347656380,1736025060693,-500.0,0.00020547,3]
[347656381,1736025060702,-564.01,0.00020547,3]
[347656382,1736025060711,-500.0,0.00020547,3]
[347656383,1736025060721,-500.0,0.00020547,3]
[347656384,1736025060730,-500.0,0.00020547,3]
[347656385,1736025060739,-500.0,0.00020547,3]
[347656386,1736025060748,-500.0,0.00020547,3]
[347656387,1736025060757,-500.0,0.00020547,3]
[347656388,1736025060767,-848.99,0.00020547,3]
[347656389,1736025060776,-500.0,0.00020547,3]
[347656390,1736025060786,-500.0,0.00020547,3]
[347656391,1736025060795,-1069.51,0.00020547,3]
[347656392,1736025060804,-500.0,0.00020547,3]
[347656393,1736025060813,-500.0,0.00020547,3]
[347656394,1736025060824,-500.0,0.00020547,3]
[347656395,1736025060833,-500.0,0.00020547,3]
[347656396,1736025060843,-512.32525403,0.00020547,3]
[347656397,1736025060852,-979.15,0.00020547,3]
[347656398,1736025060862,-538.32,0.00020547,3]
[347656399,1736025060871,-500.0,0.00020547,3]
[347656400,1736025060881,-707.11,0.00020547,3]
[347656401,1736025060890,-500.0,0.00020547,3]
[347656402,1736025060899,-1096.8,0.00020547,3]
[347656403,1736025060908,-500.0,0.00020547,3]
[347656404,1736025060918,-500.0,0.00020547,3]
[347656405,1736025060927,-902.85,0.00020547,3]
[347656406,1736025060936,-1206.85,0.00020547,3]
[347656407,1736025060947,-958.65,0.00020547,3]
[347656408,1736025060967,-500.0,0.00020547,3]
[347656409,1736025060978,-751.08,0.00020547,3]
[347656410,1736025060988,-500.0,0.00020547,3]
[347656411,1736025060998,-623.54,0.00020547,3]
[347656412,1736025061007,-932.35,0.00020547,3]
[347656413,1736025061017,-587.88,0.00020547,3]
[347656414,1736025061027,-500.0,0.00020547,3]
[347656415,1736025061037,-1527.28,0.00020547,3]
[347656416,1736025061047,-500.0,0.00020547,3]
[347656417,1736025061057,-500.0,0.00020547,3]
[347656418,1736025061069,-1042.0,0.00020547,3]
[347656419,1736025061079,-500.0,0.00020547,3]
[347656420,1736025061092,-500.0,0.00020547,3]
[347656421,1736025061102,-500.0,0.00020547,3]
[347656422,1736025061112,-832.55,0.00020547,3]
[347656423,1736025061122,-1371.27,0.00020547,3]
[347656424,1736025061131,-500.0,0.00020547,3]
[347656425,1736025061142,-500.0,0.00020547,3]
[347656426,1736025061152,-847.65,0.00020547,3]
[347656427,1736025061162,-500.0,0.00020547,3]
[347656428,1736025061172,-500.0,0.00020547,3]
[347656429,1736025061181,-500.0,0.00020547,3]
[347656430,1736025061191,-214.17165731,0.00020547,3]
[347656431,1736025061201,-500.0,0.00020547,3]
[347656432,1736025061211,-500.0,0.00020547,3]
[347656433,1736025061220,-1027.24,0.00020547,3]
[347656434,1736025061230,-500.0,0.00020547,3]
[347656435,1736025061239,-832.16,0.00020547,3]
[347656436,1736025061249,-500.0,0.00020547,3]
[347656437,1736025061259,-500.0,0.00020547,3]
[347656438,1736025061269,-860.44,0.00020547,3]
[347656439,1736025061279,-500.0,0.00020547,3]
[347656440,1736025061289,-500.0,0.00020547,3]
[347656441,1736025061299,-500.0,0.00020547,3]
[347656442,1736025061309,-857.29,0.00020547,3]
[347656443,1736025061318,-1570.19,0.00020547,3]
[347656444,1736025061328,-500.0,0.00020547,3]
[347656445,1736025061337,-500.0,0.00020547,3]
[347656446,1736025061347,-500.0,0.00020547,3]
[347656447,1736025061356,-500.0,0.00020547,3]
[347656448,1736025061365,-500.0,0.00020547,3]
[347656449,1736025061375,-892.61,0.00020547,3]
[347656450,1736025061384,-500.0,0.00020547,3]
[347656451,1736025061393,-510.09928644,0.00020547,3]
[347656452,1736025061403,-500.0,0.00020547,3]
[347656453,1736025061413,-500.0,0.00020547,3]
[347656454,1736025061422,-500.0,0.00020547,3]
[347656455,1736025061432,-500.0,0.00020547,3]
[347656456,1736025061442,-938.0,0.00020547,3]
[347656457,1736025061452,-651.67,0.00020547,3]
[347656458,1736025061461,-528.09,0.00020547,3]
[347656459,1736025061471,-832.77,0.00020547,3]
[347656460,1736025061480,-500.0,0.00020547,3]
[347656461,1736025061489,-500.0,0.00020547,3]
[347656462,1736025061498,-1388.99,0.00020547,3]
[347656463,1736025061508,-500.0,0.00020547,3]
[347656464,1736025061518,-500.0,0.00020547,3]
[347656465,1736025061527,-500.0,0.00020547,3]
[347656466,1736025061537,-500.0,0.00020547,3]
[347656467,1736025061546,-500.0,0.00020547,3]
[347656468,1736025061555,-500.0,0.00020547,3]
[347656469,1736025061564,-500.0,0.00020547,3]
[347656470,1736025061574,-1791.73,0.00020547,3]
[347656471,1736025061583,-546.84,0.00020547,3]
[347656472,1736025061592,-253.88891264,0.00020547,3]
[347656473,1736025061602,-500.0,0.00020547,3]
[347656474,1736025061611,-543.96,0.00020547,3]
[347656475,1736025061620,-500.0,0.00020547,3]
[347656476,1736025061630,-666.49,0.00020547,3]
[347656477,1736025061639,-500.0,0.00020547,3]
[347656478,1736025061649,-500.0,0.00020547,3]
[347656479,1736025061658,-518.95,0.00020547,3]
[347656480,1736025061667,-546.26,0.00020547,3]
[347656481,1736025061678,-500.0,0.00020547,3]
[347656482,1736025061688,-500.0,0.00020547,3]
[347656483,1736025061698,-500.0,0.00020547,3]
[347656484,1736025061710,-1976.26,0.00020547,3]
[347656485,1736025061719,-500.0,0.00020547,3]
[347656486,1736025061729,-500.0,0.00020547,3]
[347656487,1736025061738,-500.0,0.00020547,3]
[347656488,1736025061748,-500.0,0.00020547,3]
[347656489,1736025061759,-11287.9,0.00020547,3]
[347656490,1736025061769,-500.0,0.00020547,3]
[347656491,1736025061780,-3887.77,0.00020547,3]
[347656492,1736025061789,-543.56,0.00020547,3]
[347656493,1736025061799,-500.0,0.00020547,3]
[347656494,1736025061812,-500.0,0.00020547,3]
[347656495,1736025061822,-2267.53,0.00020547,2]
[347656496,1736025061831,-500.0,0.00020547,3]
[347656497,1736025061840,-500.0,0.00020547,3]
[347656498,1736025061850,-500.0,0.00020547,3]
[347656499,1736025061859,-500.0,0.00020547,3]
[347656500,1736025061868,-5934.35,0.00020547,3]
[347656501,1736025061879,-500.0,0.00020547,3]
[347656502,1736025061890,-529.94,0.00020547,3]
[347656503,1736025061900,-1226.74,0.00020547,3]
[347656504,1736025061910,-1736.46,0.00020547,3]
[347656505,1736025061919,-500.0,0.00020547,3]
[347656506,1736025061928,-930.43,0.00020547,3]
[347656507,1736025061938,-500.0,0.00020547,3]
[347656508,1736025061948,-504.76,0.00020547,3]
[347656509,1736025061957,-1209.92,0.00020547,3]
[347656510,1736025061967,-932.74,0.00020547,3]
[347656511,1736025061978,-1957.76,0.00020547,3]
[347656512,1736025061989,-500.0,0.00020547,3]
[347656513,1736025061999,-500.0,0.00020547,3]
[347656514,1736025062008,-991.32,0.00020547,3]
[347656515,1736025062018,-2273.68,0.00020547,3]
[347656516,1736025062028,-3374.63,0.00020547,3]
[347656517,1736025062038,-500.0,0.00020547,3]
[347656518,1736025062048,-993.13,0.00020547,3]
[347656519,1736025062059,-500.0,0.00020547,3]
[347656520,1736025062069,-2178.95,0.00020547,3]
[347656521,1736025062079,-1414.93,0.00020547,3]
[347656522,1736025062093,-500.0,0.00020547,3]
[347656523,1736025062105,-500.0,0.00020547,3]
[347656524,1736025062116,-2050.61,0.00020547,3]
[347656525,1736025062127,-500.0,0.00020547,3]
[347656526,1736025062138,-500.0,0.00020547,3]
[347656527,1736025062148,-1322.55,0.00020547,3]
[347656528,1736025062158,-500.0,0.00020547,3]
[347656529,1736025062168,-500.0,0.00020547,3]
[347656530,1736025062178,-500.0,0.00020547,3]
[347656531,1736025062188,-500.0,0.00020547,3]
[347656532,1736025062199,-500.0,0.00020547,3]
[347656533,1736025062208,-500.0,0.00020547,3]
[347656534,1736025062218,-810.68,0.00020547,3]
[347656535,1736025062229,-500.0,0.00020547,3]
[347656536,1736025062239,-500.0,0.00020547,3]
[347656537,1736025062250,-794.4,0.00020547,3]
[347656538,1736025062260,-500.0,0.00020547,3]
[347656539,1736025062270,-500.0,0.00020547,3]
[347656540,1736025062281,-500.0,0.00020547,3]
[347656541,1736025062291,-500.0,0.00020547,3]
[347656542,1736025062300,-1022.94,0.00020547,3]
[347656543,1736025062311,-500.0,0.00020547,3]
[347656544,1736025062322,-566.15,0.00020547,3]
[347656545,1736025062331,-52387.46,0.00020547,3]
[347656546,1736025062341,-3528.88,0.00020547,3]
[347656547,1736025062350,-500.0,0.00020547,3]
[347656548,1736025062360,-544.79,0.00020547,3]
[347656549,1736025062369,-1560.37,0.00020547,3]
[347656550,1736025062379,-710.1,0.00020547,2]
[347656551,1736025062388,-500.0,0.00020547,3]
[347656552,1736025062398,-3978.56,0.00020547,3]
[347656553,1736025062407,-500.0,0.00020547,3]
[347656554,1736025062417,-500.3,0.00020547,3]
[347656555,1736025062426,-423.48807358,0.00020547,3]
[347656556,1736025062435,-500.0,0.00020547,3]
[347656557,1736025062445,-616.96025997,0.00020547,3]
[347656558,1736025062454,-500.0,0.00020547,3]
[347656559,1736025062463,-2004.04,0.00020547,3]
[347656560,1736025062477,-500.0,0.00020547,3]
[347656561,1736025062487,-500.0,0.00020547,3]
[347656562,1736025062496,-500.0,0.00020547,3]
[347656563,1736025062506,-567.49,0.00020547,3]
[347656564,1736025062516,-1825.64,0.00020547,3]
[347656565,1736025062525,-500.0,0.00020547,3]
[347656566,1736025062535,-500.0,0.00020547,3]
[347656567,1736025062544,-458.78100073,0.00020547,3]
[347656568,1736025062554,-500.0,0.00020547,3]
[347656569,1736025062564,-2397.79,0.00020547,3]
[347656570,1736025062574,-1238.1,0.00020547,3]
[347656571,1736025062584,-1143.57,0.00020547,3]
[347656572,1736025062593,-77.4155288,0.00020547,3]
[347656573,1736025063215,-151.0,0.00019178,2]
[347656574,1736025063225,-151.0,0.00019178,2]
[347656575,1736025063235,-151.0,0.00019178,2]
[347656576,1736025063245,-151.0,0.00019178,2]
[347656577,1736025063254,-151.0,0.00019178,2]
[347656578,1736025063263,-151.0,0.00019178,2]
[347656579,1736025063273,-151.0,0.00019452,2]
[347656580,1736025063283,-151.0,0.00019452,2]
[347656581,1736025063292,-151.0,0.00019452,2]
[347656582,1736025063301,-260.914788,0.00019452,2]
[347656583,1736025063311,-500.0,0.00019726,3]
[347656584,1736025063322,-1000.0,0.0002,2]
[347656585,1736025063332,-500.0,0.0002,3]
[347656586,1736025063342,-500.0,0.00020273,3]
[347656587,1736025063351,-422.5844712,0.00020547,3]
[347656588,1736025063360,-500.0,0.00020547,3]
[347656589,1736025063370,-5561.67,0.00020547,3]
[347656590,1736025063379,-610.29,0.00020547,3]
[347656591,1736025063389,-10412.97,0.00020547,3]
[347656592,1736025063398,-2588.43,0.00020547,3]
[347656593,1736025063407,-2298.23,0.00020547,3]
[347656594,1736025063416,-500.0,0.00020547,3]
[347656595,1736025063426,-512.04,0.00020547,3]
[347656596,1736025063435,-1448.98,0.00020547,3]
[347656597,1736025063444,-500.0,0.00020547,3]
[347656598,1736025063454,-500.0,0.00020547,3]
[347656599,1736025063463,-595.75,0.00020547,3]
[347656600,1736025063473,-4959.36,0.00020547,3]
[347656601,1736025063482,-1523.01,0.00020547,3]
[347656602,1736025063492,-500.0,0.00020547,3]
[347656603,1736025063501,-441.0,0.000206,9]
[347656604,1736025063510,-5080.15491587,0.00020693,2]
[347656605,1736025063520,-2000.0,0.000207,2]
[347656606,1736025063529,-2000.0,0.000207,2]
[347656607,1736025063538,-2000.0,0.000207,2]
[347656608,1736025063549,-529.863212,0.00020712,2]
[347656609,1736025063558,-1500.0,0.00020722,2]
[347656610,1736025063568,-5638.0349713,0.00020794,2]
[347656611,1736025063577,-646.74,0.00020821,3]
[347656612,1736025063587,-500.0,0.00020821,3]
[347656613,1736025063596,-500.0,0.00020821,3]
[347656614,1736025063606,-500.0,0.00020821,3]
[347656615,1736025063616,-500.0,0.00020821,3]
[347656616,1736025063625,-500.0,0.00020821,3]
[347656617,1736025063634,-558.6,0.00020821,3]
[347656618,1736025063645,-500.0,0.00020821,3]
[347656619,1736025063654,-500.0,0.00020821,3]
[347656620,1736025063663,-500.0,0.00020821,3]
[347656621,1736025063672,-500.0,0.00020821,3]
[347656622,1736025063682,-564.01,0.00020821,3]
[347656623,1736025063691,-500.0,0.00020821,3]
[347656624,1736025063700,-500.0,0.00020821,3]
[347656625,1736025063710,-500.0,0.00020821,3]
[347656626,1736025063720,-500.0,0.00020821,3]
[347656627,1736025063730,-500.0,0.00020821,3]
[347656628,1736025063739,-500.0,0.00020821,3]
[347656629,1736025063750,-848.99,0.00020821,3]
[347656630,1736025063759,-500.0,0.00020821,3]
[347656631,1736025063769,-500.0,0.00020821,3]
[347656632,1736025063779,-1069.51,0.00020821,3]
[347656633,1736025063788,-500.0,0.00020821,3]
[347656634,1736025063798,-500.0,0.00020821,3]
[347656635,1736025063807,-500.0,0.00020821,3]
[347656636,1736025063816,-500.0,0.00020821,3]
[347656637,1736025063827,-979.15,0.00020821,3]
[347656638,1736025063836,-538.32,0.00020821,3]
[347656639,1736025064012,-500.0,0.00020821,3]
[347656640,1736025064021,-707.11,0.00020821,3]
[347656641,1736025064031,-500.0,0.00020821,3]
[347656642,1736025064040,-1096.8,0.00020821,3]
[347656643,1736025064049,-500.0,0.00020821,3]
[347656644,1736025064058,-500.0,0.00020821,3]
[347656645,1736025064067,-902.85,0.00020821,3]
[347656646,1736025064077,-1206.85,0.00020821,3]
[347656647,1736025064089,-958.65,0.00020821,3]
[347656648,1736025064099,-500.0,0.00020821,3]
[347656649,1736025064108,-751.08,0.00020821,3]
[347656650,1736025064117,-500.0,0.00020821,3]
[347656651,1736025064127,-623.54,0.00020821,3]
[347656652,1736025064136,-932.35,0.00020821,3]
[347656653,1736025064145,-587.88,0.00020821,3]
[347656654,1736025064156,-500.0,0.00020821,3]
[347656655,1736025064166,-1527.28,0.00020821,3]
[347656656,1736025064176,-500.0,0.00020821,3]
[347656657,1736025064185,-500.0,0.00020821,3]
[347656658,1736025064194,-1042.0,0.00020821,3]
[347656659,1736025064204,-500.0,0.00020821,3]
[347656660,1736025064213,-500.0,0.00020821,3]
[347656661,1736025064223,-500.0,0.00020821,3]
[347656662,1736025064232,-832.55,0.00020821,3]
[347656663,1736025064242,-1371.27,0.00020821,3]
[347656664,1736025064251,-500.0,0.00020821,3]
[347656665,1736025064261,-500.0,0.00020821,3]
[347656666,1736025064271,-847.65,0.00020821,3]
[347656667,1736025064280,-500.0,0.00020821,3]
[347656668,1736025064290,-500.0,0.00020821,3]
[347656669,1736025064299,-500.0,0.00020821,3]
[347656670,1736025064309,-500.0,0.00020821,3]
[347656671,1736025064319,-500.0,0.00020821,3]
[347656672,1736025064328,-1027.24,0.00020821,3]
[347656673,1736025064338,-500.0,0.00020821,3]
[347656674,1736025064348,-832.16,0.00020821,3]
[347656675,1736025064357,-500.0,0.00020821,3]
[347656676,1736025064367,-500.0,0.00020821,3]
[347656677,1736025064377,-860.44,0.00020821,3]
[347656678,1736025064387,-500.0,0.00020821,3]
[347656679,1736025064396,-508.38734931,0.00020821,3]
[347656680,1736025064406,-500.0,0.00020821,3]
[347656681,1736025064416,-857.29,0.00020821,3]
[347656682,1736025064426,-1570.19,0.00020821,3]
[347656683,1736025064435,-500.0,0.00020821,3]
[347656684,1736025064446,-500.0,0.00020821,3]
[347656685,1736025064456,-500.0,0.00020821,3]
[347656686,1736025064465,-469.49313498,0.00020821,3]
[347656687,1736025064475,-500.0,0.00020821,3]
[347656688,1736025064485,-892.61,0.00020821,3]
[347656689,1736025064495,-294.7583025,0.00020821,3]
[347656690,1736025064505,-500.0,0.00020821,3]
[347656691,1736025064514,-500.0,0.00020821,3]
[347656692,1736025064524,-500.0,0.00020821,3]
[347656693,1736025064535,-500.0,0.00020821,3]
[347656694,1736025064544,-938.0,0.00020821,3]
[347656695,1736025064555,-651.67,0.00020821,3]
[347656696,1736025064566,-528.09,0.00020821,3]
[347656697,1736025064575,-832.77,0.00020821,3]
[347656698,1736025064584,-500.0,0.00020821,3]
[347656699,1736025064594,-500.0,0.00020821,3]
[347656700,1736025064604,-1388.99,0.00020821,3]
[347656701,1736025064614,-500.0,0.00020821,3]
[347656702,1736025064624,-500.0,0.00020821,3]
[347656703,1736025064635,-500.0,0.00020821,3]
[347656704,1736025064645,-500.0,0.00020821,3]
[347656705,1736025064656,-500.0,0.00020821,3]
[347656706,1736025064667,-500.0,0.00020821,3]
[347656707,1736025064677,-500.0,0.00020821,3]
[347656708,1736025064687,-1791.73,0.00020821,3]
[347656709,1736025064696,-546.84,0.00020821,3]
[347656710,1736025064706,-500.0,0.00020821,3]
[347656711,1736025064716,-543.96,0.00020821,3]
[347656712,1736025064726,-500.0,0.00020821,3]
[347656713,1736025064736,-666.49,0.00020821,3]
[347656714,1736025064746,-500.0,0.00020821,3]
[347656715,1736025064756,-500.0,0.00020821,3]
[347656716,1736025064766,-518.95,0.00020821,3]
[347656717,1736025064775,-546.26,0.00020821,3]
[347656718,1736025064784,-500.0,0.00020821,3]
[347656719,1736025064794,-500.0,0.00020821,3]
[347656720,1736025064804,-500.0,0.00020821,3]
[347656721,1736025064813,-1976.26,0.00020821,3]
[347656722,1736025064823,-500.0,0.00020821,3]